[Event "Open Nuevo Centro. Jornada 2"]
[Site "Chess.com"]
[Date "2020.06.26"]
[Round "5"]
[White "Silva Rodriguez, Fernando"]
[Black "Casado Andreu, David"]
[Result "1-0"]
[WhiteElo "2472"]
[BlackElo "1638"]
[TimeControl "180+2"]
[EndTime "11:23:52 PDT"]
[Termination "Victoria de HarnFer por abandono"]

1. d4 {[%clk 0:03:01.9]} 1... Nf6 {[%clk 0:03:00.2]} 2. Nc3 {[%clk 0:03:03.8]}
2... g6 {[%clk 0:02:59.9]} 3. Bf4 {[%clk 0:03:04.9]} 3... Bg7 {[%clk 0:03:01.2]}
4. Qd2 {[%clk 0:03:06.4]} 4... d6 {[%clk 0:03:02.9]} 5. O-O-O {[%clk 0:03:07.6]}
5... O-O {[%clk 0:03:03.7]} 6. f3 {[%clk 0:03:06.8]} 6... Nc6 {[%clk 0:02:58.4]}
7. e4 {[%clk 0:03:07.4]} 7... e5 {[%clk 0:02:56]} 8. Be3 {[%clk 0:03:07.8]} 8...
exd4 {[%clk 0:02:47.1]} 9. Bxd4 {[%clk 0:03:09.7]} 9... Nxd4 {[%clk 0:02:47.6]}
10. Qxd4 {[%clk 0:03:11.6]} 10... Nd7 {[%clk 0:02:42.2]} 11. Qd2 {[%clk
0:03:12]} 11... Nc5 {[%clk 0:02:42.9]} 12. Nge2 {[%clk 0:03:10]} 12... Be6
{[%clk 0:02:40]} 13. Nd4 {[%clk 0:03:10.6]} 13... Qe7 {[%clk 0:02:38]} 14. h4
{[%clk 0:03:09.9]} 14... a6 {[%clk 0:02:29.6]} 15. h5 {[%clk 0:03:10.2]} 15...
b5 {[%clk 0:02:22.9]} 16. Kb1 {[%clk 0:03:04.5]} 16... b4 {[%clk 0:02:21.2]} 17.
Nd5 {[%clk 0:03:05.5]} 17... Bxd5 {[%clk 0:02:21.5]} 18. exd5 {[%clk 0:03:07.4]}
18... a5 {[%clk 0:02:15.2]} 19. Bc4 {[%clk 0:02:57.2]} 19... Rfb8 {[%clk
0:02:10.5]} 20. Qf4 {[%clk 0:02:45.3]} 20... Be5 {[%clk 0:01:39]} 21. Qg4 {[%clk
0:02:28.5]} 21... Bg7 {[%clk 0:01:20.2]} 22. Qf4 {[%clk 0:02:05.8]} 22... a4
{[%clk 0:01:17]} 23. Nc6 {[%clk 0:02:05.2]} 23... Qf6 {[%clk 0:01:00.5]} 24.
Qxf6 {[%clk 0:02:05.6]} 24... Bxf6 {[%clk 0:00:58.5]} 25. Nxb8 {[%clk 0:02:07]}
25... Rxb8 {[%clk 0:00:59.8]} 26. hxg6 {[%clk 0:02:07.3]} 26... fxg6 {[%clk
0:01:01]} 27. g4 {[%clk 0:02:05.3]} 27... b3 {[%clk 0:00:58.2]} 28. axb3 {[%clk
0:02:00.5]} 28... axb3 {[%clk 0:00:58.5]} 29. c3 {[%clk 0:02:02.2]} 29... Re8
{[%clk 0:00:47]} 30. Rde1 {[%clk 0:02:03.6]} 30... Ra8 {[%clk 0:00:39.5]} 31.
Re2 {[%clk 0:02:02.8]} 31... Ra4 {[%clk 0:00:31.1]} 32. Bb5 {[%clk 0:02:00.5]}
32... Rf4 {[%clk 0:00:28.4]} 33. Re8+ {[%clk 0:01:47.4]} 33... Kg7 {[%clk
0:00:26.9]} 34. Be2 {[%clk 0:01:48.7]} 34... Nd7 {[%clk 0:00:25.7]} 35. Rc8
{[%clk 0:01:46.1]} 35... Ne5 {[%clk 0:00:24.6]} 36. Rxc7+ {[%clk 0:01:46.6]}
36... Kg8 {[%clk 0:00:22.5]} 37. Rhxh7 {[%clk 0:01:40.9]} 37... Nxf3 {[%clk
0:00:20.7]} 38. Rhd7 {[%clk 0:01:38.6]} 38... Be5 {[%clk 0:00:14.1]} 39. Rc8+
{[%clk 0:01:39.3]} 39... Rf8 {[%clk 0:00:14.1]} 40. Rxf8+ {[%clk 0:01:40.6]}
40... Kxf8 {[%clk 0:00:14.9]} 41. Bxf3 {[%clk 0:01:42.2]} 41... Ke8 {[%clk
0:00:16.4]} 42. Rb7 {[%clk 0:01:42.7]} 42... g5 {[%clk 0:00:16.1]} 43. Rxb3
{[%clk 0:01:44.6]} 43... Bf4 {[%clk 0:00:17]} 44. Rb7 {[%clk 0:01:45.8]} 44...
Kd8 {[%clk 0:00:17.2]} 45. Kc2 {[%clk 0:01:46.1]} 45... Kc8 {[%clk 0:00:17.9]}
46. Rh7 {[%clk 0:01:48]} 46... Kd8 {[%clk 0:00:18.4]} 47. b4 {[%clk 0:01:49.9]}
1

[Event "Open Nuevo Centro. Jornada 2"]
[Site "Chess.com"]
[Date "2020.06.26"]
[Round "5"]
[White "Ferrando Lacruz, Nicolás "]
[Black "Valverde Alcaide, Miguel Alejandro"]
[Result "1-0"]
[WhiteElo "1112"]
[BlackElo "865"]
[TimeControl "180+2"]
[EndTime "11:24:04 PDT"]
[Termination "Victoria de Nicolasvlc por tiempo"]

1. d4 {[%clk 0:03:00.9]} 1... d5 {[%clk 0:03:00.2]} 2. Bf4 {[%clk 0:03:00.2]}
2... Nf6 {[%clk 0:02:50.7]} 3. Nf3 {[%clk 0:03:00.8]} 3... Nc6 {[%clk 0:02:45]}
4. e3 {[%clk 0:03:01.1]} 4... e6 {[%clk 0:02:43.7]} 5. Bd3 {[%clk 0:03:01]} 5...
b6 {[%clk 0:02:36.8]} 6. Nbd2 {[%clk 0:02:58.9]} 6... Bd6 {[%clk 0:02:21.3]} 7.
Ne5 {[%clk 0:02:58.7]} 7... O-O {[%clk 0:02:17.7]} 8. Ndf3 {[%clk 0:02:51.7]}
8... Nxe5 {[%clk 0:02:10.9]} 9. Nxe5 {[%clk 0:02:51]} 9... Ne4 {[%clk
0:02:02.2]} 10. Qf3 {[%clk 0:02:40.7]} 10... Nd2 {[%clk 0:01:52.8]} 11. Qg3
{[%clk 0:02:33.5]} 11... Ne4 {[%clk 0:01:42.8]} 12. Qh3 {[%clk 0:02:22.5]} 12...
Ng5 {[%clk 0:01:39.4]} 13. Qg3 {[%clk 0:02:18.1]} 13... h6 {[%clk 0:01:36.6]}
14. Bxg5 {[%clk 0:02:18.5]} 14... Qxg5 {[%clk 0:01:35.1]} 15. Qh3 {[%clk
0:02:16.8]} 15... Bxe5 {[%clk 0:01:29.4]} 16. dxe5 {[%clk 0:02:15.7]} 16... Qxe5
{[%clk 0:01:29]} 17. f4 {[%clk 0:02:11.8]} 17... Qxb2 {[%clk 0:01:29.1]} 18. O-O
{[%clk 0:02:06.3]} 18... e5 {[%clk 0:01:26.1]} 19. Qg3 {[%clk 0:02:03.1]} 19...
Qc3 {[%clk 0:01:17.5]} 20. Rac1 {[%clk 0:02:00.6]} 20... Qxd3 {[%clk 0:01:12.3]}
21. cxd3 {[%clk 0:01:59.9]} 21... f5 {[%clk 0:01:07.2]} 22. fxe5 {[%clk
0:01:58.2]} 22... c5 {[%clk 0:01:01.9]} 23. e4 {[%clk 0:01:54.9]} 23... d4
{[%clk 0:01:01.1]} 24. exf5 {[%clk 0:01:53.5]} 24... Rxf5 {[%clk 0:00:59]} 25.
Qg6 {[%clk 0:01:36]} 25... Rxf1+ {[%clk 0:00:56.3]} 26. Rxf1 {[%clk 0:01:35.4]}
26... Ba6 {[%clk 0:00:55.8]} 27. Qe6+ {[%clk 0:01:30.5]} 27... Kh7 {[%clk
0:00:52.4]} 28. Qf5+ {[%clk 0:01:25.9]} 28... Kg8 {[%clk 0:00:49.1]} 29. h4
{[%clk 0:01:24.6]} 29... Rf8 {[%clk 0:00:43.1]} 30. Qe6+ {[%clk 0:01:23.4]}
30... Rf7 {[%clk 0:00:37.1]} 31. Qxf7+ {[%clk 0:01:23.4]} 31... Kh7 {[%clk
0:00:37.5]} 32. h5 {[%clk 0:01:22.9]} 32... Bxd3 {[%clk 0:00:35]} 33. g3 {[%clk
0:01:21.9]} 33... Bxf1 {[%clk 0:00:35.5]} 34. Kxf1 {[%clk 0:01:22.3]} 34... c4
{[%clk 0:00:36.7]} 35. Qxc4 {[%clk 0:01:21.6]} 35... d3 {[%clk 0:00:37.2]} 36.
Qxd3+ {[%clk 0:01:22.3]} 36... Kg8 {[%clk 0:00:34.9]} 37. Qd5+ {[%clk 0:01:21]}
37... Kh7 {[%clk 0:00:09.3]} 38. e6 {[%clk 0:01:21.3]} 1

[Event "Open Nuevo Centro. Jornada 2"]
[Site "Chess.com"]
[Date "2020.06.26"]
[Round "5"]
[White "Albuixech Sanz, Jorge"]
[Black "Gerona Maura, Jesus"]
[Result "0-1"]
[WhiteElo "1353"]
[BlackElo "1753"]
[TimeControl "180+2"]
[EndTime "11:24:17 PDT"]
[Termination "Victoria de Retistente por jaque mate"]

1. e4 {[%clk 0:03:01.9]} 1... c5 {[%clk 0:02:59.3]} 2. Nf3 {[%clk 0:03:01.7]}
2... d6 {[%clk 0:03:00.1]} 3. d4 {[%clk 0:03:01.9]} 3... cxd4 {[%clk 0:03:01.2]}
4. Nxd4 {[%clk 0:03:03.1]} 4... Nf6 {[%clk 0:03:01.7]} 5. Nc3 {[%clk 0:03:02.8]}
5... a6 {[%clk 0:03:02.7]} 6. f3 {[%clk 0:03:03.8]} 6... e5 {[%clk 0:03:01.6]}
7. Nb3 {[%clk 0:03:03.1]} 7... Be6 {[%clk 0:03:02.7]} 8. Be3 {[%clk 0:03:01.5]}
8... Be7 {[%clk 0:03:03.5]} 9. Qd2 {[%clk 0:03:02.6]} 9... O-O {[%clk
0:03:04.4]} 10. g4 {[%clk 0:03:03.8]} 10... Nbd7 {[%clk 0:03:05]} 11. O-O-O
{[%clk 0:03:04.5]} 11... Rc8 {[%clk 0:02:58]} 12. Kb1 {[%clk 0:03:04.7]} 12...
Nc5 {[%clk 0:02:46.2]} 13. Nxc5 {[%clk 0:02:53.8]} 13... dxc5 {[%clk 0:02:46.3]}
14. Qf2 {[%clk 0:02:52]} 14... Qa5 {[%clk 0:02:39.8]} 15. g5 {[%clk 0:02:23.1]}
15... Nd7 {[%clk 0:02:19.6]} 16. h4 {[%clk 0:01:57.6]} 16... Rfd8 {[%clk
0:02:07.4]} 17. Bh3 {[%clk 0:01:54.4]} 17... Bxh3 {[%clk 0:02:01.1]} 18. Rxh3
{[%clk 0:01:54.7]} 18... Nb6 {[%clk 0:01:50]} 19. Rhh1 {[%clk 0:01:42.5]} 19...
Nc4 {[%clk 0:01:46.7]} 20. Bc1 {[%clk 0:01:25.1]} 20... Rd4 {[%clk 0:01:27.5]}
21. Nd5 {[%clk 0:01:12.9]} 21... Bf8 {[%clk 0:01:17.9]} 22. c3 {[%clk
0:01:07.2]} 22... Rxd1 {[%clk 0:00:59.5]} 23. Rxd1 {[%clk 0:01:07.4]} 23... b5
{[%clk 0:00:48.2]} 24. f4 {[%clk 0:01:02]} 24... b4 {[%clk 0:00:44]} 25. cxb4
{[%clk 0:00:35.3]} 25... cxb4 {[%clk 0:00:43.6]} 26. fxe5 {[%clk 0:00:30.7]}
26... Nxe5 {[%clk 0:00:36.9]} 27. Rf1 {[%clk 0:00:23.2]} 27... Qc5 {[%clk
0:00:16.3]} 28. h5 {[%clk 0:00:15.3]} 28... Qxf2 {[%clk 0:00:16]} 29. Rxf2
{[%clk 0:00:16.2]} 29... Nd3 {[%clk 0:00:17.3]} 30. Rd2 {[%clk 0:00:16.2]} 30...
Rxc1# {[%clk 0:00:13.3]} 0

[Event "Open Nuevo Centro. Jornada 2"]
[Site "Chess.com"]
[Date "2020.06.26"]
[Round "5"]
[White "Deusa Ballesteros, Lucas "]
[Black "Zamora Soler, Raul"]
[Result "0-1"]
[WhiteElo "1458"]
[BlackElo "1769"]
[TimeControl "180+2"]
[EndTime "11:24:21 PDT"]
[Termination "Victoria de rzamora80 por jaque mate"]

1. e4 {[%clk 0:03:01.9]} 1... c5 {[%clk 0:03:00.7]} 2. Nf3 {[%clk 0:03:00.4]}
2... Nc6 {[%clk 0:03:01.2]} 3. d4 {[%clk 0:03:00.9]} 3... cxd4 {[%clk
0:03:02.3]} 4. Nxd4 {[%clk 0:03:01.6]} 4... Nf6 {[%clk 0:03:02.7]} 5. Nc3 {[%clk
0:03:01.6]} 5... e6 {[%clk 0:03:03.2]} 6. Be3 {[%clk 0:02:59.6]} 6... Bb4 {[%clk
0:03:03.5]} 7. Bd3 {[%clk 0:02:56.7]} 7... O-O {[%clk 0:02:59.8]} 8. O-O {[%clk
0:02:56.5]} 8... Bxc3 {[%clk 0:02:52.8]} 9. bxc3 {[%clk 0:02:56.5]} 9... d5
{[%clk 0:02:53.8]} 10. exd5 {[%clk 0:02:54.9]} 10... Nxd5 {[%clk 0:02:54.4]} 11.
Nxc6 {[%clk 0:02:49.9]} 11... bxc6 {[%clk 0:02:51.8]} 12. Bd4 {[%clk 0:02:41.3]}
12... Re8 {[%clk 0:02:46.1]} 13. Qh5 {[%clk 0:02:34.9]} 13... g6 {[%clk
0:02:39.3]} 14. Qh6 {[%clk 0:02:31.4]} 14... e5 {[%clk 0:02:40.1]} 15. Be3
{[%clk 0:02:22.9]} 15... Nxc3 {[%clk 0:02:24.6]} 16. Qg5 {[%clk 0:01:49.6]}
16... Qxg5 {[%clk 0:02:17.2]} 17. Bxg5 {[%clk 0:01:51.5]} 17... Kg7 {[%clk
0:02:16.2]} 18. Rfe1 {[%clk 0:01:49.3]} 18... f6 {[%clk 0:02:16.6]} 19. Bd2
{[%clk 0:01:47.5]} 19... Nd5 {[%clk 0:02:16.9]} 20. f4 {[%clk 0:01:37.2]} 20...
Bd7 {[%clk 0:02:08.5]} 21. fxe5 {[%clk 0:01:36.7]} 21... Rxe5 {[%clk 0:02:08.1]}
22. Rxe5 {[%clk 0:01:36.3]} 22... fxe5 {[%clk 0:02:08.2]} 23. Re1 {[%clk
0:01:35]} 23... Re8 {[%clk 0:02:04.8]} 24. c4 {[%clk 0:01:33]} 24... Nf4 {[%clk
0:01:55.3]} 25. Bxf4 {[%clk 0:01:31.1]} 25... exf4 {[%clk 0:01:56]} 26. Rxe8
{[%clk 0:01:31.2]} 26... Bxe8 {[%clk 0:01:56.9]} 27. Kf2 {[%clk 0:01:31.4]}
27... Kf6 {[%clk 0:01:57.8]} 28. h4 {[%clk 0:01:29.9]} 28... Ke5 {[%clk
0:01:58.5]} 29. Kf3 {[%clk 0:01:23.2]} 29... c5 {[%clk 0:01:59.3]} 30. Bc2
{[%clk 0:01:11.3]} 30... Bc6+ {[%clk 0:01:57]} 31. Kf2 {[%clk 0:01:11.1]} 31...
Be4 {[%clk 0:01:50.6]} 32. Ba4 {[%clk 0:01:05.3]} 32... h6 {[%clk 0:01:51]} 33.
g3 {[%clk 0:01:01.9]} 33... g5 {[%clk 0:01:45.5]} 34. hxg5 {[%clk 0:00:58]}
34... hxg5 {[%clk 0:01:45.9]} 35. gxf4+ {[%clk 0:00:58.7]} 35... gxf4 {[%clk
0:01:46.6]} 36. Ke2 {[%clk 0:00:52]} 36... Kd4 {[%clk 0:01:46.9]} 37. Bb3 {[%clk
0:00:50.9]} 37... a5 {[%clk 0:01:42.4]} 38. Kf2 {[%clk 0:00:49.1]} 38... Kc3
{[%clk 0:01:42.2]} 39. Ke2 {[%clk 0:00:48.7]} 39... Bc2 {[%clk 0:01:36.9]} 40.
Bxc2 {[%clk 0:00:47.1]} 40... Kxc2 {[%clk 0:01:37.9]} 41. Kf3 {[%clk 0:00:47]}
41... Kc3 {[%clk 0:01:38.9]} 42. Kxf4 {[%clk 0:00:48.3]} 42... Kxc4 {[%clk
0:01:39.4]} 43. Ke3 {[%clk 0:00:48.7]} 43... Kc3 {[%clk 0:01:40.6]} 44. Ke4
{[%clk 0:00:49]} 44... a4 {[%clk 0:01:39.7]} 45. Kd5 {[%clk 0:00:45.4]} 45... c4
{[%clk 0:01:40.7]} 46. Kc5 {[%clk 0:00:42.7]} 46... Kd3 {[%clk 0:01:38]} 47. Kb4
{[%clk 0:00:40.8]} 47... c3 {[%clk 0:01:38.7]} 48. Ka3 {[%clk 0:00:40.7]} 48...
c2 {[%clk 0:01:39.8]} 49. Kb2 {[%clk 0:00:38.6]} 49... Kd2 {[%clk 0:01:40.7]}
50. a3 {[%clk 0:00:36.5]} 50... c1=Q+ {[%clk 0:01:41.1]} 51. Ka2 {[%clk
0:00:38.2]} 51... Qc4+ {[%clk 0:01:41]} 52. Kb2 {[%clk 0:00:36.5]} 52... Qb5+
{[%clk 0:01:39.5]} 53. Ka2 {[%clk 0:00:35.7]} 53... Kc2 {[%clk 0:01:40.3]} 54.
Ka1 {[%clk 0:00:36.7]} 54... Qb1# {[%clk 0:01:40.5]} 0

[Event "Open Nuevo Centro. Jornada 2"]
[Site "Chess.com"]
[Date "2020.06.26"]
[Round "5"]
[White "Segarra Martinez, Axel"]
[Black "Giaccio González, Alfredo Gustavo"]
[Result "1-0"]
[WhiteElo "2225"]
[BlackElo "2368"]
[TimeControl "180+2"]
[EndTime "11:24:33 PDT"]
[Termination "Victoria de Alejandrosky por jaque mate"]

1. e4 {[%clk 0:03:01.9]} 1... e6 {[%clk 0:03:01.4]} 2. d4 {[%clk 0:03:01.5]}
2... d5 {[%clk 0:03:03]} 3. Nd2 {[%clk 0:03:03]} 3... a6 {[%clk 0:03:03.4]} 4.
c3 {[%clk 0:03:02.9]} 4... c5 {[%clk 0:03:04.5]} 5. exd5 {[%clk 0:03:04]} 5...
exd5 {[%clk 0:03:04.9]} 6. Ngf3 {[%clk 0:03:05.4]} 6... c4 {[%clk 0:03:04.8]} 7.
Be2 {[%clk 0:03:06.2]} 7... Bd6 {[%clk 0:03:05.2]} 8. O-O {[%clk 0:03:07.4]}
8... Ne7 {[%clk 0:03:06.7]} 9. b3 {[%clk 0:03:07.7]} 9... cxb3 {[%clk
0:03:07.5]} 10. axb3 {[%clk 0:03:08.8]} 10... Nbc6 {[%clk 0:03:08.9]} 11. c4
{[%clk 0:03:09.8]} 11... O-O {[%clk 0:03:08.4]} 12. h3 {[%clk 0:03:10.5]} 12...
Bf5 {[%clk 0:03:08.7]} 13. Bb2 {[%clk 0:02:59.1]} 13... f6 {[%clk 0:03:00.7]}
14. Nh4 {[%clk 0:02:59.1]} 14... Be6 {[%clk 0:03:00.4]} 15. Re1 {[%clk
0:02:40.6]} 15... Qd7 {[%clk 0:03:00.8]} 16. Bg4 {[%clk 0:02:13.6]} 16... Bxg4
{[%clk 0:02:53.8]} 17. hxg4 {[%clk 0:02:04.8]} 17... Rfe8 {[%clk 0:02:50.4]} 18.
Qf3 {[%clk 0:01:58.2]} 18... Bb4 {[%clk 0:02:48.6]} 19. Rad1 {[%clk 0:01:53.2]}
19... dxc4 {[%clk 0:02:40.8]} 20. bxc4 {[%clk 0:01:50.8]} 20... Nxd4 {[%clk
0:01:40.9]} 21. Qd3 {[%clk 0:01:51.6]} 21... Rad8 {[%clk 0:01:32.6]} 22. Re4
{[%clk 0:01:39.6]} 22... Nec6 {[%clk 0:01:29.3]} 23. Nf5 {[%clk 0:01:40.2]}
23... Bxd2 {[%clk 0:01:16.7]} 24. Rxd2 {[%clk 0:00:51.2]} 24... Rxe4 {[%clk
0:01:06.4]} 25. Qxe4 {[%clk 0:00:53.1]} 25... Nf3+ {[%clk 0:00:59.8]} 26. gxf3
{[%clk 0:00:54]} 26... Qxd2 {[%clk 0:01:01.2]} 27. Qe6+ {[%clk 0:00:52.3]} 27...
Kh8 {[%clk 0:01:01.1]} 28. Bxf6 {[%clk 0:00:53.7]} 28... h6 {[%clk 0:00:31.8]}
29. Bxg7+ {[%clk 0:00:45.1]} 29... Kh7 {[%clk 0:00:32.1]} 30. Bxh6 {[%clk
0:00:43]} 30... Qd7 {[%clk 0:00:27.8]} 31. Qe4 {[%clk 0:00:27.8]} 31... Re8
{[%clk 0:00:24.6]} 32. Qf4 {[%clk 0:00:29]} 32... Ne5 {[%clk 0:00:21]} 33. Bg7
{[%clk 0:00:27.5]} 33... Kg8 {[%clk 0:00:17.1]} 34. Bxe5 {[%clk 0:00:27.5]}
34... Qe6 {[%clk 0:00:08.7]} 35. Qg5+ {[%clk 0:00:28.3]} 35... Kh7 {[%clk
0:00:09.2]} 36. Qg7# {[%clk 0:00:28.6]} 1

[Event "Open Nuevo Centro. Jornada 2"]
[Site "Chess.com"]
[Date "2020.06.26"]
[Round "5"]
[White "Borissov, Julián"]
[Black "Vega Gutiérrez, Sabrina"]
[Result "0-1"]
[WhiteElo "1853"]
[BlackElo "2044"]
[TimeControl "180+2"]
[EndTime "11:24:36 PDT"]
[Termination "Victoria de Valeron87 por abandono"]

1. e4 {[%clk 0:03:01.9]} 1... c5 {[%clk 0:03:00.4]} 2. Nf3 {[%clk 0:03:02]} 2...
Nc6 {[%clk 0:03:01.7]} 3. Bb5 {[%clk 0:03:02.1]} 3... Nf6 {[%clk 0:02:59.5]} 4.
Bxc6 {[%clk 0:02:59.8]} 4... dxc6 {[%clk 0:03:00]} 5. e5 {[%clk 0:02:59.4]} 5...
Nd5 {[%clk 0:03:00.1]} 6. c4 {[%clk 0:02:59.2]} 6... Nc7 {[%clk 0:03:00.7]} 7.
O-O {[%clk 0:02:58.9]} 7... Bg4 {[%clk 0:03:01.7]} 8. h3 {[%clk 0:02:58.7]} 8...
Bxf3 {[%clk 0:03:02]} 9. Qxf3 {[%clk 0:02:59.1]} 9... Ne6 {[%clk 0:03:02.8]} 10.
Nc3 {[%clk 0:02:57.1]} 10... g6 {[%clk 0:03:02.1]} 11. Ne4 {[%clk 0:02:55.3]}
11... Bg7 {[%clk 0:03:02.9]} 12. d3 {[%clk 0:02:49]} 12... O-O {[%clk
0:02:35.5]} 13. Qg3 {[%clk 0:02:43.3]} 13... Qd4 {[%clk 0:02:29]} 14. Be3 {[%clk
0:02:35.3]} 14... Qxd3 {[%clk 0:02:22.9]} 15. Nxc5 {[%clk 0:02:34.8]} 15... Nxc5
{[%clk 0:02:05]} 16. Bxc5 {[%clk 0:02:34.3]} 16... Qxg3 {[%clk 0:02:02.2]} 17.
fxg3 {[%clk 0:02:29.6]} 17... Bxe5 {[%clk 0:02:03.7]} 18. Rae1 {[%clk 0:02:24]}
18... Bxb2 {[%clk 0:01:40.3]} 19. Rxe7 {[%clk 0:02:15.8]} 19... b6 {[%clk
0:01:41.3]} 20. Bd6 {[%clk 0:02:15.1]} 20... Rad8 {[%clk 0:01:35]} 21. c5 {[%clk
0:02:14.2]} 21... Bd4+ {[%clk 0:01:33.9]} 22. Kh2 {[%clk 0:02:13.8]} 22... bxc5
{[%clk 0:01:27.1]} 23. Bc7 {[%clk 0:01:59.5]} 23... Rd5 {[%clk 0:00:57.7]} 24.
Re2 {[%clk 0:01:51.5]} 24... c4 {[%clk 0:00:57.3]} 25. Rf4 {[%clk 0:01:38]}
25... Rc8 {[%clk 0:00:51.1]} 26. Re7 {[%clk 0:01:35.6]} 26... Rf8 {[%clk
0:00:39.9]} 27. Rfe4 {[%clk 0:01:24]} 27... c3 {[%clk 0:00:39.7]} 28. Bf4 {[%clk
0:01:25]} 28... c2 {[%clk 0:00:36.2]} 29. Rc7 {[%clk 0:01:19.9]} 29... f5 {[%clk
0:00:09.2]} 30. Ree7 {[%clk 0:01:16.9]} 30... Rc5 {[%clk 0:00:06.9]} 31. Rxh7
{[%clk 0:01:10.4]} 31... c1=Q {[%clk 0:00:07.9]} 32. Bxc1 {[%clk 0:01:11]} 32...
Rxc1 {[%clk 0:00:09]} 33. Rxa7 {[%clk 0:01:10.9]} 33... Bxa7 {[%clk 0:00:09.6]}
34. Rxa7 {[%clk 0:01:11.5]} 34... c5 {[%clk 0:00:10.7]} 35. a4 {[%clk
0:01:11.4]} 35... c4 {[%clk 0:00:11.7]} 36. a5 {[%clk 0:01:11.8]} 36... c3
{[%clk 0:00:13]} 37. a6 {[%clk 0:01:11.5]} 37... Rc8 {[%clk 0:00:11.2]} 38. Rb7
{[%clk 0:01:09.2]} 38... Ra1 {[%clk 0:00:12.1]} 39. a7 {[%clk 0:01:07.3]} 39...
c2 {[%clk 0:00:09.6]} 40. Rb8 {[%clk 0:01:07.5]} 40... c1=Q {[%clk 0:00:10.7]}
41. Rxc8+ {[%clk 0:01:04.5]} 41... Qxc8 {[%clk 0:00:11.2]} 0

[Event "Open Nuevo Centro. Jornada 2"]
[Site "Chess.com"]
[Date "2020.06.26"]
[Round "5"]
[White "Cebolla Ruiz, David"]
[Black "Yuste Valenzuela, Alejandro"]
[Result "0-1"]
[WhiteElo "1560"]
[BlackElo "1848"]
[TimeControl "180+2"]
[EndTime "11:24:37 PDT"]
[Termination "Victoria de alejandrito290 por jaque mate"]

1. e4 {[%clk 0:03:01.9]} 1... c5 {[%clk 0:02:58.8]} 2. Nf3 {[%clk 0:03:01.5]}
2... d6 {[%clk 0:02:59.9]} 3. d4 {[%clk 0:03:02.5]} 3... cxd4 {[%clk 0:03:01.8]}
4. Nxd4 {[%clk 0:03:03.7]} 4... Nf6 {[%clk 0:03:02.1]} 5. Nc3 {[%clk 0:03:04.6]}
5... g6 {[%clk 0:03:02.8]} 6. Be3 {[%clk 0:03:05.1]} 6... Bg7 {[%clk 0:03:03.5]}
7. f3 {[%clk 0:03:02.8]} 7... O-O {[%clk 0:03:03.3]} 8. Qd2 {[%clk 0:03:03.4]}
8... Nc6 {[%clk 0:03:00.1]} 9. Bc4 {[%clk 0:03:03.9]} 9... Bd7 {[%clk
0:03:00.2]} 10. O-O-O {[%clk 0:03:04.5]} 10... Rc8 {[%clk 0:03:00.7]} 11. Bb3
{[%clk 0:03:05.4]} 11... Ne5 {[%clk 0:03:01.4]} 12. h4 {[%clk 0:03:05.3]} 12...
h5 {[%clk 0:03:01.8]} 13. Bh6 {[%clk 0:03:01.7]} 13... Nc4 {[%clk 0:03:01.9]}
14. Bxc4 {[%clk 0:03:01.4]} 14... Rxc4 {[%clk 0:03:03.8]} 15. Bxg7 {[%clk
0:03:00.2]} 15... Kxg7 {[%clk 0:03:05.7]} 16. Qe2 {[%clk 0:02:26.9]} 16... Rc5
{[%clk 0:02:50.3]} 17. Rhg1 {[%clk 0:02:17.3]} 17... Be6 {[%clk 0:02:34.8]} 18.
Nxe6+ {[%clk 0:01:57.1]} 18... fxe6 {[%clk 0:02:36.7]} 19. g4 {[%clk 0:01:58.1]}
19... Qa5 {[%clk 0:02:28.3]} 20. gxh5 {[%clk 0:01:47.4]} 20... Nxh5 {[%clk
0:02:26.8]} 21. Qg2 {[%clk 0:01:43]} 21... Nf4 {[%clk 0:02:26.9]} 22. Qg4 {[%clk
0:01:39.1]} 22... Rxc3 {[%clk 0:02:17]} 23. bxc3 {[%clk 0:01:39.2]} 23... Qxc3
{[%clk 0:02:03.8]} 24. Kb1 {[%clk 0:01:18.3]} 24... Qb4+ {[%clk 0:01:50.8]} 25.
Ka1 {[%clk 0:01:17.8]} 25... Qc3+ {[%clk 0:01:44.8]} 26. Kb1 {[%clk 0:01:18.4]}
26... e5 {[%clk 0:00:41.1]} 27. h5 {[%clk 0:00:53.6]} 27... Rc8 {[%clk 0:00:37]}
28. Rc1 {[%clk 0:00:36.1]} 28... Rc5 {[%clk 0:00:31.6]} 29. h6+ {[%clk
0:00:15.5]} 29... Kh7 {[%clk 0:00:26.6]} 30. a4 {[%clk 0:00:11.1]} 30... Rc4
{[%clk 0:00:17.2]} 31. Qd7 {[%clk 0:00:05]} 31... Rb4+ {[%clk 0:00:17.5]} 32.
Ka2 {[%clk 0:00:06]} 32... Qb2# {[%clk 0:00:18.2]} 0